{"text_format":"1","workbook":"xlsx","n_sheets":1,"sheets":["BON DE COMMANDE PARTICULIER"],"not_rendered":{"charts":0,"images":1,"macros":1,"external_links":0,"defined_names":0,"comments":0,"pivot_tables":0},"unopened":[],"bounds":{"document_bytes":16777216,"sheet_cells":100000,"rows_first":2000,"rows_last":500,"rows_between":2000,"halvings":0,"cell_chars":16384,"cell_head_chars":4096},"cells_cut":0,"cells_raw":0,"read":"whole","date_system":"1900"}

{"sheet":"BON DE COMMANDE PARTICULIER","index":0,"n_rows":420,"n_cols":19,"rows_kept":420,"cut":false,"hidden":false,"merged":[[8,0,8,4],[197,2,197,5],[195,2,195,5],[196,2,196,5],[192,0,192,4],[59,0,59,4],[78,0,78,4],[411,0,412,0],[81,0,112,0],[113,0,120,0],[121,0,126,0],[129,0,130,0],[127,0,128,0],[374,0,374,4],[153,0,153,4],[142,0,142,4],[174,0,174,4],[418,0,429,6],[221,0,221,4],[245,0,245,4],[261,0,261,4],[288,0,288,4],[300,0,300,4],[390,0,390,4],[405,0,405,4],[415,0,415,4],[305,0,305,4],[311,0,311,4],[417,0,417,3],[417,4,417,5],[356,0,356,4],[364,0,364,4],[408,0,410,0]]}
[]
[]
[]
[]
[]
[]
[null,"MORILLES","Poids","Prix au Kg","Quantité","Total"]
[null,"Morilles sèches","100gr",42,null,{"$f":"E8*D8","v":0}]
["Sous total",null,null,null,null,{"$f":"SUM(F8)","v":0}]
[]
[null,"Fruits secs","Poids","Prix au Kg","Quantité","Total"]
[null,"Flocons d'avoine","1kg",2.5,null,{"$f":"E12*D12","v":0}]
[null,"Abricots Cubes","1kg",11.5,null,{"$f":"E13*D13","v":0}]
[null,"Amande Bâtonnet","1kg",15,null,0]
[null,"Amande Bâtonnet"," 500gr",{"$f":"D14/2","v":7.5},null,0]
[null,"Amande Blanchie","1kg",16.5,null,0]
[null,"Amande Blanchie"," 500gr",{"$f":"D16/2","v":8.25},null,0]
[null,"Amande Brute","1kg",14.65,null,0]
[null,"Amande Brute"," 500gr",{"$f":"D18/2","v":7.3250000000000002},null,0]
[null,"Amande Effilée","1kg",14.5,null,0]
[null,"Amande Effilée"," 500gr",{"$f":"D20/2","v":7.25},null,0]
[null,"Amande Hachée","1kg",13.95,null,0]
[null,"Amande Hachée"," 500gr",{"$f":"D22/2","v":6.9749999999999996},null,0]
[null,"Amande Poudre Blanche","1kg",13.5,null,0]
[null,"Amande Poudre Blanche"," 500gr",{"$f":"D24/2","v":6.75},null,0]
[null,"Amande Poudre Brute","1kg",14.5,null,0]
[null,"Amande Poudre Brute"," 500gr",{"$f":"D26/2","v":7.25},null,0]
[null,"Cerneaux Noix","1kg",15,null,0]
[null,"Cerneaux Noix"," 500gr",{"$f":"D28/2","v":7.5},null,0]
[null,"Cerneaux Noix","200gr",4,null,0]
[null,"Noix Hachée","1kg",8.9,null,0]
[null,"Noix Hachée"," 500gr",{"$f":"D31/2","v":4.45},null,0]
[null,"Coco Rapée","1kg",6,null,0]
[null,"Cranberries Séchées","1kg",11,null,0]
[null,"Cranberries Séchées"," 500gr",{"$f":"D34/2","v":5.5},null,0]
[null,"Figues Séchée Cubes","1kg",8.5,null,0]
[null,"Noisette Blanchie","1kg",17,null,0]
[null,"Noisette Blanchie"," 500gr",{"$f":"D37/2","v":8.5},null,0]
[null,"Noisette Brute","1kg",15,null,0]
[null,"Noisette Brute"," 500gr",{"$f":"D39/2","v":7.5},null,0]
[null,"Noisette Poudre","1kg",15,null,0]
[null,"Noisette Poudre"," 500gr",{"$f":"D41/2","v":7.5},null,0]
[null,"Noix de Pécan","1kg",31,null,0]
[null,"Noix de Pécan"," 500gr",{"$f":"D43/2","v":15.5},null,0]
[null,"Noix de Pécan","200gr",6.5,null,0]
[null,"Pistache Entière","1kg",65,null,0]
[null,"Pistache Entière"," 500gr",{"$f":"D46/2","v":32.5},null,0]
[null,"Pistache Entière","100gr",6.6,null,0]
[null,"Pistache Hachée","1kg",50,null,0]
[null,"Pistache Hachée"," 500gr",{"$f":"D49/2","v":25},null,0]
[null,"Pistache Hachée","100gr",4.95,null,0]
[null,"Pruneaux","1kg",8.8000000000000007,null,0]
[null,"Raisin Golden","1kg",6.8,null,0]
[null,"Raisin Golden"," 500gr",{"$f":"D53/2","v":3.4},null,0]
[null,"Raisins Secs","1kg",5,null,0]
[null,"Raisins Secs"," 500gr",{"$f":"D55/2","v":2.5},null,0]
[null,"Sésame","1kg",5.75,null,0]
[null,"Graine de Lin","1kg",2.68,null,0]
[null,"Graine de Pavot","1kg",7,null,0]
["Sous total",null,null,null,null,{"$f":"SUM(F12:F59)","v":0}]
[]
[null,"Fruits confits","Poids","Prix","Quantité","Total"]
[null,"Tranches orange confites ","1kg",21,null,{"$f":"E63*D63","v":0}]
[null,"12 Tranches orange confites ","200gr",3.5,null,{"$f":"E64*D64","v":0}]
[null,"Lamelles citron confits","1kg",30,null,0]
[null,"Lamelles citron confits","300gr",11.8,null,0]
[null,"Lamelles orange confites ","1kg",23.75,null,0]
[null,"Lamelles orange confites ","300gr",9.6,null,0]
[null,"Fruits confits tricolore","1kg",9,null,0]
[null,"Fruits confits tricolore","200gr",2.1,null,0]
[null,"Cubes d'orange confit","1kg",9.5,null,0]
[null,"Cubes d'orange confit","200gr",2.1,null,0]
[null,"Bigarreaux confits","1kg",14.14,null,0]
[null,"Bigarreaux confits","200gr",2.94,null,0]
[null,"Cubes de citron confit","1kg",13,null,0]
[null,"Cubes de citron confit","200gr",2.8,null,0]
[null,"Angélique","1kg",19.440000000000001,null,0]
[null,"Angélique","200gr",{"$f":"D77/5","v":3.8880000000000003},null,0]
["Sous total",null,null,null,null,{"$f":"SUM(F63:F78)","v":0}]
[]
[null,"Chocolat","Poids","Prix","Quantité","Total"]
["BARRY","Alto en Sol ","1kg",21.25,null,{"$f":"E82*D82","v":0}]
[null,"Alto en Sol ","500gr",{"$f":"D82/2","v":10.625},null,{"$f":"E83*D83","v":0}]
[null,"Alunga","1kg",17,null,0]
[null,"Alunga","500gr",{"$f":"D84/2","v":8.5},null,0]
[null,"Force Noire","1kg",11,null,0]
[null,"Force Noire","500gr",{"$f":"D86/2","v":5.5},null,0]
[null,"Ghana","1kg",17.5,null,0]
[null,"Ghana","500gr",{"$f":"D88/2","v":8.75},null,0]
[null,"Inaya ","1kg",15.5,null,0]
[null,"Inaya ","500gr",{"$f":"D90/2","v":7.75},null,0]
[null,"Lactée Caramel","1kg",17,null,0]
[null,"Lactée Caramel","500gr",{"$f":"D92/2","v":8.5},null,0]
[null,"Madirofolo","1kg",23,null,0]
[null,"Madirofolo","500gr",{"$f":"D94/2","v":11.5},null,0]
[null,"Mexique","1kg",17.5,null,0]
[null,"Mexique","500gr",{"$f":"D96/2","v":8.75},null,0]
[null,"Ocoa","1kg",16,null,0]
[null,"Ocoa","500gr",{"$f":"D98/2","v":8},null,0]
[null,"Papouasie","1kg",17.5,null,0]
[null,"Papouasie","500gr",{"$f":"D100/2","v":8.75},null,0]
[null,"Ruby","1kg",16,null,0]
[null,"Ruby","500gr",{"$f":"D102/2","v":8},null,0]
[null,"St Domingue ","1kg",16.5,null,0]
[null,"St Domingue ","500gr",{"$f":"D104/2","v":8.25},null,0]
[null,"Tanzanie","1kg",17.5,null,0]
[null,"Tanzanie","500gr",{"$f":"D106/2","v":8.75},null,0]
[null,"Venezuela ","1kg",18,null,0]
[null,"Venezuela ","500gr",{"$f":"D108/2","v":9},null,0]
[null,"Zephyr","1kg",17,null,{"$f":"E110*D110","v":0}]
[null,"Zephyr","500gr",{"$f":"D110/2","v":8.5},null,0]
[null,"Zephyr Caramel ","1kg",17,null,0]
[null,"Zephyr Caramel ","500gr",{"$f":"D112/2","v":8.5},null,0]
["CARMA","Nuit Blanche","1kg",19,null,0]
[null,"Nuit Blanche","500gr",{"$f":"D114/2","v":9.5},null,0]
[null,"Milk Claire","1kg",20,null,0]
[null,"Milk Claire","500gr",{"$f":"D116/2","v":10},null,0]
[null,"Milk des Alpes","1kg",20,null,0]
[null,"Milk des Alpes","500gr",{"$f":"D118/2","v":10},null,0]
[null,"Black Zabuye","1kg",23,null,0]
[null,"Black Zabuye","500gr",{"$f":"D120/2","v":11.5},null,0]
["VALRHONA","Dulcey","1kg",27,null,0]
[null,"Dulcey","500gr",{"$f":"D122/2","v":13.5},null,0]
[null,"Jivara","1kg",26,null,0]
[null,"Jivara","500gr",{"$f":"D124/2","v":13},null,0]
[null,"Guanaja","1kg",26,null,0]
[null,"Guanaja","500gr",{"$f":"D126/2","v":13},null,0]
["BARRY","Plaque Excellence 55% ","2.5kg",33.1,null,0]
[null,"Plaque chocolat blanc ","2.5kg",42,null,0]
["CEMOI","Bâtons chocolat pâtissier noir",300,11,null,0]
[null,"Bâtons chocolat pâtissier noir",500,9.5,null,0]
["BARRY","Bâtons chocolat pâtissier lait ",160,15.95,null,0]
[null,"Gianduja","500gr ~",{"$f":"18.5/2","v":9.25},null,0]
[null,"Chocolat arome orange ","500gr",8,null,0]
[null,"Chocolat arome fraise ","500gr",8,null,0]
[null,"Cacao Brute","1kg",11.5,null,0]
[null,"Cara Crakine","1kg",15,null,0]
[null,"Pralin Feuilletine","1kg",26,null,0]
[null,"Praliné Amandes Noisettes ","1kg",20,null,0]
[null,"Pate de Praliné Noisette ","150gr",8.5,null,0]
[null,"Beurre de Cacao","1kg",25,null,0]
[null,"Mycryo","1kg",14.8,null,0]
["Sout total",null,null,null,null,{"$f":"SUM(F82:F142)","v":0}]
[]
[null,"Parsemages divers","Poids","Prix","Quantité","Total"]
[null,"Vermicelles chocolat","200gr",3.5,null,{"$f":"E146*D146","v":0}]
[null,"Pailletés Chocolat","200gr",3.4,null,0]
[null,"Praligrain","200gr",4.4000000000000004,null,0]
[null,"Crispearls Blanc","100gr",1.95,null,0]
[null,"Crispearls Lait","100gr",1.89,null,0]
[null,"Crispearls Caramel","100gr",2.2000000000000002,null,0]
[null,"Crispearls Noir","100gr",1.75,null,0]
[null,"Grué de cacao","100gr",2.1,null,0]
["Sous total",null,null,null,null,{"$f":"SUM(F146:F153)","v":0}]
[]
[null,"Arômes - Extraits","Poids","Prix","Quantité","Total"]
[null,"Eau de fleur d’oranger","100ml",3.95,null,{"$f":"E157*D157","v":0}]
[null,"Eau de rose","100ml",4.45,null,0]
[null,"Jus de citron","1L",5.6,null,0]
[null,"Extrait de Vanille Madagascar ","1L",65,null,0]
[null,"Extrait de Vanille Tahitensis ","50cl",63,null,0]
[null,"Arome de Vanille Boulpât"," 1L",16.89,null,0]
[null,"Arome naturel de Vanille ","1L",44,null,0]
[null,"Arome de Café Gout Brésil ","1L",25.5,null,0]
[null,"Caramel Patissier","250ml",4.2,null,0]
[null,"Caramel Pâtissier","1,35L",12.5,null,0]
[null,"Extrait de Café","1L",34.299999999999997,null,0]
[null,"Extrait de Café","90ml",5.6,null,0]
[null,"Arome Fleur d’oranger","1L",3.63,null,0]
[null,"Arôme Mallard ferrière (parfum spécifique)","125ml",9.3000000000000007,null,0]
[null,"Extrait de Vanille Madagascar ","250ml",33,null,0]
[null,"Extrait de Vanille Tahitensis ","250ml",33,null,0]
[null,"5 Gousses de vanille",null,20,null,0]
[null,"2 Gousses de vanille",null,8,null,0]
["Sous total",null,null,null,null,{"$f":"SUM(F157:F174)","v":0}]
[]
[null,"Pate de Nougat - Amande - Marrons - Pistache","Poids","Prix","Quantité","Total","Couleurs"]
[null,"Pate de Nougat","150gr",9.6,null,{"$f":"E178*D178","v":0},null,null,"Blanche"]
[null,"Pâte d’amande 33% Blanche ou tricolore","250gr",2.2000000000000002,null,{"$f":"E179*D179","v":0},null,1,"Tricolore"]
[null,"Pâte d’amande 33% Blanche ou tricolore","250gr",2.2000000000000002,null,0,null,3,"Tricolore"]
[null,"Pâte d’amande 33% Blanche","1kg",8.8000000000000007,null,0]
[null,"Pâte d’amande 50% Blanche","1kg",12.5,null,0]
[null,"Marrons entiers en sirop ","370gr",12.55,null,0]
[null,"Purée de marron","850gr",8.15,null,0]
[null,"Pate de marron","850gr",10.41,null,0]
[null,"Crème de marron","850gr",7.4,null,0]
[null,"Crème de marron","350gr",4.5999999999999996,null,0]
[null,"Crème de marron","80gr",1.95,null,0]
[null,"Marrons au sirop","600gr",27.45,null,0]
[null,"Pate de pistache 30% ","200gr",9.6,null,0]
[null,"Pate de Pistache 70% ","200gr",13,null,0]
[null,"Pate de Pistache 99%","200gr",15,null,0]
["Sous total",null,null,null,null,{"$f":"SUM(F178:F192)","v":0}]
[]
[null,"Aide à la patisserie Matériel",null,"Prix","Quantité","Total"]
[null,"Cercle à tarte diametre 16 - 18 - 20 - 22 - 24 - 26 - 28 - 30 - 32",null,null,null,null,"Par téléphone"]
[null,"Cercle à mousse diametre 26 - 28 - 30 - 32",null,null,null,null,"Par téléphone"]
[null,"Cercle à vacherin diametre 16 - 18 - 20 - 22 - 24 - 26 - 28 - 30 - 32",null,null,null,null,"Par téléphone"]
[null,"Bombe de givrage",null,7.95,null,{"$f":"E199*D199","v":0}]
[null,"Graiss’vit Pâtisserie",null,6.5,null,0]
[null,"Graiss’vit Plancha",null,6.5,null,0]
[null,"Feuille Guitare",null,0.11,null,0]
[null,"Bombe de Graisse",null,5.5,null,0]
[null,"Feuille Rhodoid",null,0.64,null,0]
[null,"Cremfix","750gr",9.3000000000000007,null,0]
[null,"Film Etirable",null,7.5,null,0]
[null,"Papier Cuisson",null,7.8,null,0]
[null,"Aluminium",null,19.2,null,0]
[null,"Poche à douille jetable verte","x100",17.46,null,0]
[null,"Poche à douille jetable","x100",17.239999999999998,null,0]
[null,"Poche à douille jetable MF","x100",15.72,null,0]
[null,"Rouleau hetre 42cm",null,7.5,null,0]
[null,"Rouleau hetre 50cm",null,7.8,null,0]
[null,"Billes de cuisson céramique","500gr",6.82,null,0]
[null,"Billes de cuisson céramique","1kg",13,null,0]
[null,"Billes de cuisson alu","500gr",10.74,null,0]
[null,"Cartouche Syphon x10",null,5.88,null,0]
[null,"Chalumeau",null,31.1,null,0]
[null,"Bouteille de gaz",null,3.42,null,0]
[null,"Chalumeau Petit modele",null,14.1,null,0]
[null,"Bouteille de gaz PM",null,3.96,null,0]
["Sous total",null,null,null,null,{"$f":"SUM(F199:F221)","v":0}]
[]
[null,"Boite & transport","Poids","Prix","Quantité","Total"]
[null,"Boite à Cupcake",null,20,null,{"$f":"E225*D225","v":0}]
[null,"Boite à macaron 2x35macarons",null,7.56,null,0]
[null,"Boite de transport 26X26X18",null,1.95,null,0]
[null,"Boite 26x26x5","unite",0.5,null,0]
[null,"Boite 28x28x8","unite",0.65,null,0]
[null,"Boite 29x29x10","unite",0.8,null,0]
[null,"Boite 32x32x5","unite",0.86,null,0]
[null,"Boite 32x32x8","unite",1,null,0]
[null,"Boite 40x30x12","unite",1.5,null,0]
[null,"Boite 40x30x8","unite",1.21,null,0]
[null,"Rectangle 60x40","unite",1,null,0]
[null,"Rectangle 30x40","unite",0.6,null,0]
[null,"Carré 28cm","unite",0.45,null,0]
[null,"Taiteur 19x28","unite",0.4,null,0]
[null,"Traiteur 48x28","unite",0.7,null,0]
[null,"Ronds or 16cm","unite",0.1,null,0]
[null,"Ronds or 20cm","unite",0.16,null,0]
[null,"Ronds or 24cm","unite",0.2,null,0]
[null,"Ronds or 26cm","unite",0.25,null,0]
[null,"Ronds or 28cm","unite",0.3,null,0]
[null,"Ronds or 30cm","unite",0.32,null,0]
["Sous total",null,null,null,null,{"$f":"SUM(F225:F245)","v":0}]
[]
[null,"Préparation","Poids","Prix","Quantité","Total"]
[null,"Fleur de Mais","1kg",5.9,null,{"$f":"E249*D249","v":0}]
[null,"Crème pâtissière à froid ","1kg",11,null,0]
[null,"Crème pâtissière à chaud ","1kg",6.35,null,0]
[null,"Meringues","1kg",12.55,null,0]
[null,"Mousseline","1kg",11.8,null,0]
[null,"Alaska Framboise Préparation pour Bavarois ",null,6.5,null,0]
[null,"Alaska Fraise Préparation pour Bavarois ",null,6.6,null,0]
[null,"Alaska Chocolat Préparation pour Bavarois ",null,5.8,null,0]
[null,"Alaska Poire Préparation pour Bavarois ",null,5.5,null,0]
[null,"Glaçage Miroir","375gr",5.5,null,0]
[null,"Glaçage Miroir neutre","1,5kg",11.9,null,0]
[null,"Topnap Rouge","1kg",4.5999999999999996,null,0]
[null,"Topnap Blond","1kg",4.5999999999999996,null,0]
["Sous total",null,null,null,null,{"$f":"SUM(F249:F261)","v":0}]
[]
[null,"Sucre Farine et huile","Poids","Prix","Quantité","Total"]
[null,"Huile de coco","610 ml",13,null,{"$f":"E265*D265","v":0}]
[null,"Huile de pistache","25CL",9,null,0]
[null,"Huile de Noisette","50CL",9,null,0]
[null,"Huile de noix","50CL",7.5,null,0]
[null,"Huile Wok Thai","50CL",9.6,null,0]
[null,"Sucre en poudre","1kg",1.5,null,0]
[null,"Sucre en poudre","5kg",8.8000000000000007,null,0]
[null,"Sucre vergeoise brune ","500gr",4.8,null,0]
[null,"Sucre vanillé artificielle",null,8.6,null,0]
[null,"Sucre Vanillé 100% bourbon",null,33,null,0]
[null,"Perle de sucre","350gr",3.9,null,0]
[null,"Sucre glace","1kg",3.15,null,0]
[null,"Sucre Impalpable","2kg",4.8,null,0]
[null,"Sucre cassonade","1kg",3.2,null,0]
[null,"Cassonade Graeffe","1kg",4.8,null,0]
[null,"Trimoline","2kg",11.95,null,0]
[null,"Fondant","1kg",5.5,null,0]
[null,"Glucose","1kg",4.5,null,0]
[null,"Sucre Inverti","300gr",3.6,null,0]
[null,"Sucrapièce","1,5kg",12.15,null,0]
[null,"Decor suc Isomalt","1kg",7.4,null,0]
[null,"Farine Jura ","1kg",1.1000000000000001,null,0]
[null,"Farine Jura ","5kg",5.2,null,0]
[null,"Farine Tipo ","1kg",1.1000000000000001,null,0]
["Sous total",null,null,null,null,{"$f":"SUM(F265:F288)","v":0}]
[]
[null,"Levure, beurre et crème","Poids","Prix","Quantité","Total"]
[null,"Levure déshydratée Boulangère","500gr",5.2,null,{"$f":"E292*D292","v":0}]
[null,"Levure Seche Boulangère","5x11gr",2.5,null,0]
[null,"Baking Powder","80gr",2.2999999999999998,null,0]
[null,"Baking Powder","1kg",9,null,0]
[null,"Levure ménagère","500gr",3.52,null,0]
[null,"Crème LESCURE 35%","1l",5.09,null,0]
[null,"Creme végan ","1l",3.06,null,0]
[null,"Beurre Région","500gr",4.4000000000000004,null,0]
[null,"Beurre tourage","1Kg",13,null,0]
["Sous total",null,null,null,null,{"$f":"SUM(F292:F300)","v":0}]
[]
[null,"Gélatine","Poids","Prix","Quantité","Total"]
[null,"Gélatine de Poisson 200 blooms",null,5.8,null,{"$f":"E304*D304","v":0}]
[null,"Agar Agar","125gr",22,null,0]
["Sous total",null,null,null,null,{"$f":"SUM(F304:F305)","v":0}]
[]
[null,"Fruits conserves","Poids","Prix","Quantité","Total"]
[null,"Griottines","1l",23,null,{"$f":"E309*D309","v":0}]
[null,"Cerises Amarena",null,7.54,null,0]
[null,"Poires au sirop",null,3,null,0]
["Sous total",null,null,null,null,{"$f":"SUM(F309:F311)","v":0}]
[]
[null,"Purée de fruit surgélés","Poids","Prix","Quantité","Total"]
[null,"Abricot","1kg",6.5,null,{"$f":"E315*D315","v":0}]
[null,"Ananas","1kg",8.85,null,0]
[null,"Banane","1kg",6.8,null,0]
[null,"Bergamote","1kg",10.44,null,0]
[null,"Caraibes au rhum","1kg",9.2200000000000006,null,0]
[null,"Cassis","1kg",10.65,null,0]
[null,"Cerises noires","1kg",10.81,null,0]
[null,"Citron jaune","1kg",8.1999999999999993,null,0]
[null,"Citron vert","1kg",8.5,null,0]
[null,"Coco","1kg",10.65,null,0]
[null,"Cranberry et griottes","1kg",11.5,null,0]
[null,"Fraise","1kg",8,null,0]
[null,"Fraise des bois","1kg",21.22,null,0]
[null,"Framboise","1kg",11,null,0]
[null,"Fruits rouges","1kg",11.38,null,0]
[null,"Fruits tropicaux","1kg",9.5,null,0]
[null,"Goyave","1kg",8,null,0]
[null,"Griottes","1kg",8.57,null,0]
[null,"Groseilles","1kg",8.34,null,0]
[null,"Kalamansi","1kg",11,null,0]
[null,"Kiwi","1kg",6,null,0]
[null,"Litchi","1kg",11.5,null,0]
[null,"Mandarine","1kg",8,null,0]
[null,"Mangue","1kg",10.55,null,0]
[null,"Mangue épicées","1kg",10.29,null,0]
[null,"Mara des bois","1kg",14.46,null,0]
[null,"Marron et vanille","1kg",11.98,null,0]
[null,"Melon","1kg",9,null,0]
[null,"Mirabelle","1kg",8.58,null,0]
[null,"Mure","1kg",11.9,null,0]
[null,"Myrtille","1kg",13.15,null,0]
[null,"Orange amere","1kg",8.9499999999999993,null,0]
[null,"Orange sanguine","1kg",7.55,null,0]
[null,"Pamplemousse rose","1kg",8.09,null,0]
[null,"Papaye","1kg",9.57,null,0]
[null,"Passion","1kg",9.9,null,0]
[null,"Peche blanche","1kg",8,null,0]
[null,"Peche sanguine","1kg",8.5500000000000007,null,0]
[null,"Poires william","1kg",6,null,0]
[null,"Pomme verte","1kg",5.6,null,0]
[null,"Rhubarbe","1kg",7.85,null,0]
[null,"Yuzu","1kg",67,null,0]
["Sous total",null,null,null,null,{"$f":"SUM(F315:F356)","v":0},null,7]
[]
[null,"Coulis surgélés","Poids","Prix","Quantité","Total"]
[null,"Abricot","500gr",6,null,{"$f":"E360*D360","v":0}]
[null,"Cassis","500gr",6,null,0]
[null,"Fraise","500gr",6,null,0]
[null,"Framboise","500gr",6,null,0]
[null,"Mangue Passion","500gr",6,null,0]
["Sous total",null,null,null,null,{"$f":"SUM(F360:F364)","v":0},null,7]
[null,null,null,null,null,null,null,null,null,null,0,null,"Blanc",null,"Bleu",null,"Pastel pink",null,"Licorne"]
[null,"Décorations non alimentaire","Poids","Prix","Quantité","Total","Chiffres",7,null,null,1,null,"Noir",null,"Vert",null,"Baby ble",null,"Minnie"]
[null,"Bougies Fontaines","12pièces",9.5,null,{"$f":"E368*D368","v":0},null,null,null,null,2,null,null,null,"Rose",null,"Pastel blue",null,"Mickey"]
[null,"Cierges Magiques","10 pièces",0.96,null,0,null,null,null,null,3,null,null,null,"Rouge",null,"Mystic turquoise",null,"Pyjamask"]
[null,"Bougie chiffre 0 à 9 ","unité",2.2799999999999998,null,0,3,2,null,null,4,null,null,null,"Blanc",null,"Fire red",null,"Pat patrouille"]
[null,"Bougie chiffre 0 à 9 ","unité",2.2799999999999998,null,{"$f":"E371*D371","v":0},3,4,null,null,5,null,null,null,"Jaune",null,"Pastel green",null,"Sirène"]
[null,"Bougie chiffre 0 à 9, cœur et étoile scintillant","unité",2.7,null,{"$f":"E372*D372","v":0},3,11,null,null,6,null,null,null,null,null,"Lime green",null,"Vaiana"]
[null,"Bougie chiffre 0 à 9, cœur et étoile scintillant","unité",2.7,null,0,null,11,null,null,7,null,null,null,null,null,"Maroon brown",null,"Hello Kitty"]
[null,"Bougie MULTICOLOR WILTON ","20 pièces",2.8,null,0,null,5,null,null,8,null,null,null,null,null,"Pastel Lilac",null,"Cars"]
["Sous total",null,null,null,null,{"$f":"SUM(F368:F374)","v":0},null,null,null,null,9,null,null,null,null,null,"Fancy violet",null,"Miraculoos"]
[null,null,null,null,null,null,null,null,null,null,"Cœur",null,null,null,null,null,"Pastel Yellow",null,"Bob l'éponge"]
[null,"Décorations  alimentaire","Poids","Prix","Quantité","Total","Couleurs ou thème",null,null,null,"Etoile",null,null,null,null,null,"Raven black"]
[null,"Pate à sucre blanche ","2,5kg",25,null,{"$f":"E378*D378","v":0},null,null,null,null,null,null,null,null,null,null,"Tiger orange"]
[null,"Pate à sucre blanche ou noire ","1kg",11,null,0,null,1,null,null,null,null,null,null,null,null,"Natural Beige"]
[null,"Pate à sucre Pastel Pink - Baby blue - Pastel blue - Mystic turquoise - Fire red - Pastel Green - Lime Green - Maroon brown - Pastel Lilac -Fancy Violet - Pastel Yellow - Raven Black - Tiger orange - Natural beige","250gr",2.8,null,0,null,7]
[null,"Pate à sucre Pastel Pink - Baby blue - Pastel blue - Mystic turquoise - Fire red - Pastel Green - Lime Green - Maroon brown - Pastel Lilac -Fancy Violet - Pastel Yellow - Raven Black - Tiger orange - Natural beige","250gr",2.8,null,{"$f":"E381*D381","v":0},null,7]
[null,"Pate à sucre Pastel Pink - Baby blue - Pastel blue - Mystic turquoise - Fire red - Pastel Green - Lime Green - Maroon brown - Pastel Lilac -Fancy Violet - Pastel Yellow - Raven Black - Tiger orange - Natural beige","250gr",2.8,null,0,null,7]
[null,"Pate à sucre Ranson Bleu - Vert - Rose - Rouge - Blanche - Jaune","150gr",1.6,null,{"$f":"E383*D383","v":0},null,1]
[null,"Pate à sucre Ranson Bleu - Vert - Rose - Rouge - Blanche - Jaune","150gr",1.6,null,0,null,1]
[null,"Pate à sucre Ranson Bleu - Vert - Rose - Rouge - Blanche - Jaune","150gr",1.6,null,0,null,1]
[null,"Disque Azyme (licorne, minnie, mickey, pijamask, pat patrouille…)","unité",2.7,null,{"$f":"E386*D386","v":0},null,8]
[null,"Impression personnalisée Azyme A4","unité",7.5,null,{"$f":"E387*D387","v":0},"Par téléphone"]
[null,"Impression personnalisée Azyme Rond 21cm","unité",6.8,null,{"$f":"E388*D388","v":0},"Par téléphone"]
[null,"Impression personnalisée Sucre A4","unité",11.8,null,0,"Par téléphone"]
[null,"Impression personnalisée Sucre Rond 21cm","unité",9.9,null,{"$f":"E390*D390","v":0},"Par téléphone"]
["Sous total",null,null,null,null,{"$f":"SUM(F378:F386)","v":0}]
[]
[null,"Epices","Poids","Prix","Quantité","Total"]
[null,"Poivre de Timut",null,3.95,null,{"$f":"E394*D394","v":0}]
[null,"Poivre Bourbon",null,4,null,0]
[null,"Poivre de Sighuan",null,3.5,null,0]
[null,"Poivre de Voatsiperifery",null,5.5,null,0,null,7]
[null,"Sel Rose de Himalaya",null,2.5,null,0]
[null,"Sel Rouge d'Hawai",null,3.5,null,0]
[null,"Sel noir d'Hawai",null,5,null,0]
[null,"Baies Roses",null,3.6,null,0]
[null,"Cardamome verte",null,4.0999999999999996,null,0]
[null,"Poudre de Combava",null,5.35,null,0]
[null,"Mélange Pain d'épices",null,5.55,null,0]
[null,"Feve de Tonka",null,6,null,0]
["Sous total",null,null,null,null,{"$f":"SUM(F394:F405)","v":0}]
[]
[null,"Colorants","Poids","Prix","Quantité","Total","Couleurs"]
["Hydrosoluble","Gel Jaune - Orange - Rose clair - Fushia - Rouge - Violet - Bleu clair - Bleu - Vert clair - Vert - Marron - Noir",null,1.7,null,{"$f":"E409*D409","v":0},null,5,null,null,"Jaune",null,"Bleu ciel",null,"Bleu ciel","Or","Bleu indigo","Rouge","Bleu "]
[null,"Poudre Bleu ciel - Bleu indigo - Rouge fraise - Rouge framboise - Jaune citron - Jaune œuf - Cassis - Brun caramel - Vert pomme - Vert menthe - Vert pistache - Noir","20gr",12.1,null,0,null,8,null,null,"Orange",null,"Bleu indigo",null,"Rouge fraise","Bronze","Rouge fraise","Rose","Rouge "]
[null,"Poudre Bleu ciel - Rouge fraise - Jaune citron - Jaune Œuf - Violet - Brun caramel - Brun chocolat - Vert menthe - Vert pistache - Noir - Orange mandarine","8gr",7.5,null,0,null,9,null,null,"Rose clair",null,"Rouge fraise",null,"Jaune Citron","Rubis","Rouge framboise","Neutre","Jaune"]
["Liposoluble","Poudre Bleu indigo - Rouge fraise - Rouge framboise - Jaune citron - Noir - Vert ","20gr",10.08,null,0,null,3,null,null,"Fushia",null,"Rouge framboise",null,"Jaune œuf","Cuivre","Jaune citron","Jaune"]
[null,"Flower Rouge - Bleu - Jaune","UNITE",0.65,null,0,null,1,null,null,"Rouge",null,"Jaune Citron",null,"Violet",null,"Noir","Brun"]
[null,"Spray velours Rouge - Rose - Neutre (blanc) - Jaune - Brun - Vert","UNITE",13.34,null,0,null,6,null,null,"Vilet",null,"Jaune œuf",null,"Brun caramel",null,"Vert","Vert"]
[null,"Spray Métalisé Or - Bronze - Rubis - Cuivre","UNITE",17.88,null,0,null,3,null,null,"Bleu clair",null,"Cassi",null,"Brun chocolat"]
["Sous total",null,null,null,null,{"$f":"SUM(F409:F415)","v":0},null,null,null,null,"Bleu clair",null,"Brun Caramel",null,"Vert menthe"]
[null,null,null,null,null,null,null,null,null,null,"Vert clair",null,"Vert pomme",null,"Vert pistache"]
["TOTAL",null,null,null,{"$f":"F60+F79+F143+F154+F175+F193+F222+F246+F262+F289+F301+F306+F312+F375+F391+F406+F416+F365+F357","v":0},null,null,null,null,null,"Marron",null,"Vert menthe",null,"Noir réglisse"]
[null,null,null,null,null,null,null,null,null,null,"Noir",null,"Vert pistache",null,"Orange mandarine"]
[null,null,null,null,null,null,null,null,null,null,null,null,"Noir"]